lending/lending_fUSD_20260312
["ID","MTS","AMOUNT","RATE_DAILY","PERIOD"]
[408288016,1773354644484,-1003.8236335,0.00019989,2]
[408288017,1773354644493,-96240.0378769,0.00019989,2]
[408288018,1773354644506,-151.0,0.00019997,2]
[408288019,1773354644515,-151.0,0.00019997,2]
[408288020,1773354644524,-300.0,0.00019999,2]
[408288021,1773354644533,-666.0,0.00019999,2]
[408288022,1773354644542,-300.0,0.00019999,2]
[408288023,1773354644551,-300.0,0.00019999,2]
[408288024,1773354644560,-300.0,0.00019999,2]
[408288025,1773354644571,-666.0,0.00019999,2]
[408288026,1773354644580,-1131.19487627,0.00019999,5]
[408288027,1773354644588,-1163.99576138,0.00019999,5]
[408288028,1773354644597,-500.0,0.00019999,2]
[408288029,1773354644607,-500.0,0.00019999,2]
[408288030,1773354644616,-500.0,0.00019999,2]
[408288031,1773354644625,-500.0,0.00019999,2]
[408288032,1773354644634,-500.0,0.00019999,2]
[408288033,1773354644642,-500.0,0.00019999,2]
[408288034,1773354644651,-646.2283814,0.00019999,2]
[408288035,1773354644660,-500.0,0.00019999,2]
[408288036,1773354644668,-500.0,0.00019999,2]
[408288037,1773354644677,-500.0,0.00019999,2]
[408288038,1773354644686,-500.0,0.00019999,2]
[408288039,1773354644695,-500.0,0.00019999,2]
[408288040,1773354644703,-500.0,0.00019999,2]
[408288041,1773354644713,-500.0,0.00019999,2]
[408288042,1773354644723,-500.0,0.00019999,2]
[408288043,1773354644731,-500.0,0.00019999,2]
[408288044,1773354644740,-500.0,0.00019999,2]
[408288045,1773354644750,-500.0,0.00019999,2]
[408288046,1773354644759,-500.0,0.00019999,2]
[408288047,1773354644767,-500.0,0.00019999,2]
[408288048,1773354644776,-500.0,0.00019999,2]
[408288049,1773354644785,-500.0,0.00019999,2]
[408288050,1773354644795,-500.0,0.00019999,2]
[408288051,1773354644804,-500.0,0.00019999,2]
[408288052,1773354644813,-500.0,0.00019999,2]
[408288053,1773354644822,-500.0,0.00019999,2]
[408288054,1773354644835,-372.46622483,0.00019999,2]
[408288055,1773354644843,-500.0,0.00019999,2]
[408288056,1773354644852,-500.0,0.00019999,2]
[408288057,1773354644862,-500.0,0.00019999,2]
[408288058,1773354644871,-500.0,0.00019999,2]
[408288059,1773354644880,-500.0,0.00019999,2]
[408288060,1773354644889,-500.0,0.00019999,2]
[408288061,1773354644898,-500.0,0.00019999,2]
[408288062,1773354644907,-500.0,0.00019999,2]
[408288063,1773354644917,-500.0,0.00019999,2]
[408288064,1773354644926,-500.0,0.00019999,2]
[408288065,1773354644936,-500.0,0.00019999,2]
[408288066,1773354644946,-500.0,0.00019999,2]
[408288067,1773354644955,-500.0,0.00019999,2]
[408288068,1773354644965,-490.60783479,0.00019999,2]
[408288069,1773354644974,-500.0,0.00019999,2]
[408288070,1773354644983,-500.0,0.00019999,2]
[408288071,1773354644992,-500.0,0.00019999,2]
[408288072,1773354645002,-500.0,0.00019999,2]
[408288073,1773354645012,-514.75306544,0.00019999,2]
[408288074,1773354645021,-500.0,0.00019999,2]
[408288075,1773354645031,-558.0,0.0002,2]
[408288076,1773354645041,-3350172.25312201,0.0002,2]
[408288077,1773354645151,-1655.25907661,0.0002,2]
[408288078,1773354645163,-654.8022252,0.0002,2]
[408288079,1773354645274,-526.0,0.00017948,2]
[408288080,1773354645283,-10899.34462364,0.0002,2]
[408288081,1773354645393,-347.92944304,0.0002,2]
[408288082,1773354645803,-356.93200005,0.00014542,2]
[408288083,1773354646034,-1982.65516457,0.00014542,2]
[408288084,1773354646055,-384.61162915,0.00014542,2]
[408288209,1773354710051,1767.64,0.00013499,2]
[408288210,1773354915845,2287.495079,0.0001434,2]
[408288211,1773354916087,165.56,0.00011687,2]
[408288212,1773354967792,3442.24,0.00014301,2]
[408288213,1773354969120,150.0,0.00014301,2]
[408288214,1773355037451,500.0,9.349e-05,2]
[408288215,1773355038432,500.0,9.349e-05,2]
[408288216,1773355038756,500.0,9.349e-05,2]
[408288217,1773355038899,574.26510812,9.349e-05,2]
[408288218,1773355039272,500.0,9.349e-05,2]
[408288219,1773355039428,500.0,9.349e-05,2]
[408288220,1773355039775,500.0,9.349e-05,2]
[408288221,1773355039899,500.0,9.349e-05,2]
[408288222,1773355040461,500.0,9.349e-05,2]
[408288223,1773355040946,998.30044391,9.349e-05,2]
[408288224,1773355044651,500.0,9.349e-05,2]
[408288225,1773355044681,500.0,9.349e-05,2]
[408288226,1773355045148,500.0,9.349e-05,2]
[408288227,1773355045181,500.0,9.349e-05,2]
[408288228,1773355045596,500.0,9.349e-05,2]
[408288229,1773355045647,500.0,9.349e-05,2]
[408288230,1773355046054,500.0,9.349e-05,2]
[408288231,1773355046154,891.86330138,9.349e-05,2]
[408288232,1773355046545,500.0,9.349e-05,2]
[408288233,1773355047555,500.0,9.349e-05,2]
[408288234,1773355048046,791.12940709,9.349e-05,2]
[408288235,1773355048423,500.0,9.349e-05,2]
[408288236,1773355048877,862.49904235,9.349e-05,2]
[408288237,1773355049639,506.55607891,9.349e-05,2]
[408288238,1773355050404,500.0,9.349e-05,2]
[408288239,1773355050653,500.0,9.349e-05,2]
[408288240,1773355050856,799.78003695,9.349e-05,2]
[408288241,1773355054426,500.0,9.349e-05,2]
[408288242,1773355054911,500.0,9.349e-05,2]
[408288243,1773355055586,500.0,9.349e-05,2]
[408288247,1773355108487,1844.31,0.00013799,2]
[408288248,1773355136261,166.66,0.00013041,2]
[408288249,1773355136470,166.66,0.00013316,2]
[408288250,1773355136700,166.66,0.0001359,2]
[408288251,1773355136914,166.66,0.00013865,2]
[408288252,1773355137135,166.66,0.00014139,2]
[408288253,1773355173354,559.39,0.0001365,2]
[408288254,1773355196102,10000.01,0.0001365,2]
[408288255,1773355196125,2067.36,0.0001365,2]
[408288256,1773355205869,4000.0,0.00013693,2]
[408288257,1773355206081,1000.01,0.00014035,2]
[408288258,1773355206104,2999.99,0.00014035,2]
[408288260,1773355209313,371.737028,0.00013695,2]
[408288261,1773355240271,6400.22,0.00013632,2]
[408288265,1773355313256,150.0,0.00013656,2]
[408288266,1773355321446,200.0,0.00013699,2]
[408288267,1773355337436,500.0,9.35e-05,2]
[408288268,1773355337878,500.0,9.35e-05,2]
[408288269,1773355338372,500.0,9.35e-05,2]
[408288270,1773355342791,500.0,9.35e-05,2]
[408288271,1773355343263,500.0,9.35e-05,2]
[408288272,1773355344201,500.0,9.35e-05,2]
[408288273,1773355346128,500.0,9.35e-05,2]
[408288274,1773355348329,500.0,9.35e-05,2]
[408288275,1773355348813,500.0,9.35e-05,2]
[408288276,1773355349275,500.0,9.35e-05,2]
[408288277,1773355349303,500.0,9.35e-05,2]
[408288278,1773355349759,256.70037037,0.00014139,2]
[408288279,1773355352137,500.0,9.35e-05,2]
[408288280,1773355355138,500.0,9.35e-05,2]
[408288281,1773355355459,500.0,9.35e-05,2]
[408288282,1773355355946,500.0,9.35e-05,2]
[408288283,1773355356455,878.66620574,9.35e-05,2]
[408288284,1773355400359,1413.16,0.00013643,2]
[408288285,1773355465477,150.0,0.00013559,2]
[408288286,1773355483552,200.0,0.00013581,2]
[408288287,1773355488548,6751.2313,0.00014313,2]
[408288288,1773355489028,151.0,0.00014313,2]
[408288289,1773355489067,151.0,0.00014313,2]
[408288290,1773355495384,5000.01,0.00014313,2]
[408288291,1773355495408,2746.7787,0.00014313,2]
[408288292,1773355495432,8430.41446589,0.00014313,2]
[408288293,1773355512729,1417.27,0.00013699,2]
[408288294,1773355539073,6166.67,0.00013611,2]
[408288295,1773355548433,5000.01,0.00013497,2]
[408288296,1773355548459,3833.34,0.00013497,2]
[408288297,1773355548484,10000.01,0.00013497,2]
[408288298,1773355548509,10000.01,0.00013497,2]
[408288299,1773355548533,10000.01,0.00013497,2]
[408288300,1773355548556,10000.01,0.00013497,2]
[408288301,1773355548579,10000.01,0.00013497,2]
[408288302,1773355548603,10000.01,0.00013497,2]
[408288303,1773355548627,10000.01,0.00013497,2]
[408288304,1773355548650,10000.01,0.00013497,2]
[408288305,1773355548674,10000.01,0.00013497,2]
[408288306,1773355563592,-432.30652968,0.00013497,2]
[408288307,1773355563694,-10000.01,0.00013497,2]
[408288308,1773355563789,-10000.01,0.00013497,2]
[408288309,1773355563891,-10000.01,0.00013497,2]
[408288310,1773355565350,-1403.79347032,0.00013497,2]
[408288311,1773355607922,504.09,0.00013596,2]
[408288312,1773355636382,198.40163112,0.00014277,2]
[408288313,1773355637259,500.0,8.6e-05,2]
[408288314,1773355637750,512.43213366,8.6e-05,2]
[408288315,1773355638080,500.0,8.6e-05,2]
[408288316,1773355638132,500.0,8.6e-05,2]
[408288317,1773355638623,500.0,8.6e-05,2]
[408288318,1773355639122,500.0,8.6e-05,2]
[408288319,1773355643478,500.0,8.6e-05,2]
[408288320,1773355643826,-2171.3419,0.00014313,2]
[408288321,1773355643988,500.0,8.6e-05,2]
[408288322,1773355644170,-657.3262,0.00014313,2]
[408288323,1773355650004,500.0,9.313e-05,2]
[408288324,1773355650522,500.0,9.313e-05,2]
[408288325,1773355650893,500.0,9.313e-05,2]
[408288326,1773355650981,500.0,9.313e-05,2]
[408288327,1773355651407,500.0,9.313e-05,2]
[408288328,1773355651462,500.0,9.313e-05,2]
[408288329,1773355654161,500.0,9.313e-05,2]
[408288330,1773355654246,185.3576,0.00014305,2]
[408288331,1773355654274,1890.274338,0.00014305,2]
[408288332,1773355656170,500.0,9.313e-05,2]
[408288333,1773355656628,500.0,9.313e-05,2]
[408288334,1773355657107,500.0,9.313e-05,2]
[408288335,1773355657602,500.0,9.313e-05,2]
[408288336,1773355674749,357.5607,0.00014277,2]
[408288338,1773355720763,2769.02,0.00011507,2]
[408288339,1773355727020,634.623854,0.00014305,2]
[408288340,1773355728552,6596.366146,0.00014313,2]
[408288341,1773355728573,10000.01,0.00014313,2]
[408288342,1773355728594,10000.01,0.00014313,2]
[408288343,1773355728615,5773.035254,0.00014313,2]
[408288344,1773355792653,5000.01,0.00014313,2]
[408288345,1773355792676,4226.974746,0.00014313,2]
[408288346,1773355792699,10000.01,0.00014313,2]
[408288347,1773355792720,10000.01,0.00014313,2]
[408288348,1773355792742,10000.01,0.00014313,2]
[408288349,1773355792762,10000.01,0.00014313,2]
[408288350,1773355792784,10000.01,0.00014313,2]
[408288351,1773355792811,10000.01,0.00014313,2]
[408288352,1773355792837,10000.01,0.00014313,2]
[408288353,1773355792859,10000.01,0.00014313,2]
[408288354,1773355792880,10000.01,0.00014313,2]
[408288355,1773355801063,211.0,0.00014312,2]
[408288356,1773355801093,300.0,0.00014312,2]
[408288357,1773355801344,1200.0,0.00014312,2]
[408288358,1773355801393,300.0,0.00014312,2]
[408288359,1773355801420,1500.0,0.00013488,2]
[408288368,1773355831973,-2275.79860427,0.00014313,2]
[408288369,1773355831984,-388.8323745,0.00014313,2]
[408288370,1773355831995,-2031.69358579,0.00014313,2]
[408288371,1773355832032,-797.36558668,0.00014313,2]
[408288372,1773355832043,-15471.26054474,0.00014313,2]
[408288373,1773355832054,-574.6,0.00014313,2]
[408288374,1773355832095,-4375.8559646,0.00014313,2]
[408288375,1773355832107,-458.44747329,0.00014313,2]
[408288376,1773355832119,-181339.51295028,0.00014313,2]
[408288377,1773355832131,-16095.13508545,0.00014313,2]
[408288378,1773355832143,-63453.57271772,0.00014313,2]
[408288379,1773355832154,-57881.40920808,0.00014313,2]
[408288417,1773355838018,-54057.82468714,0.00014313,2]
[408288419,1773355838078,-1000.000001,0.00014313,2]
[408288420,1773355838090,-2589.95071451,0.00014313,2]
[408288421,1773355838138,-327.51077293,0.00014313,2]
[408288422,1773355838149,-712831.87688302,0.00014313,2]
[408288423,1773355838158,-2002.05619144,0.00014313,2]
[408288424,1773355838169,-268.0,0.00014313,2]
[408288425,1773355838178,-815.99709557,0.00014377,2]
[408288426,1773355838187,-300.0,0.00014377,2]
[408288427,1773355838196,-300.0,0.00014377,2]
[408288428,1773355838206,-250.0,0.00014377,2]
[408288429,1773355838215,-229.79476782,0.00014377,2]
[408288430,1773355838225,-307.44905594,0.00014377,2]
[408288431,1773355838234,-367.1844389,0.00014377,2]
[408288432,1773355838243,-4000.0,0.00014378,2]
[408288433,1773355838253,-1417.27,0.00014384,2]
[408288434,1773355838262,-214.52462581,0.000144,2]
[408288435,1773355838271,-352.75300871,0.000144,2]
[408288436,1773355838291,-490.98139161,0.000144,2]
[408288437,1773355838302,-432.763147,0.000144,2]
[408288438,1773355838311,-526.9481784,0.000144,2]
[408288440,1773355838322,-411.0714,0.00014412,2]
[408288441,1773355838333,-1595.343,0.00014412,2]
[408288442,1773355838343,-150.0,0.00014412,2]
[408288443,1773355838352,-172.089,0.00014412,2]
[408288444,1773355838364,-32942.6924,0.00014413,2]
[408288445,1773355838373,-1000.0,0.00014413,2]
[408288447,1773355838383,-500.0,0.00014413,2]
[408288449,1773355838393,-173.9972675,0.00014413,2]
[408288451,1773355838402,-13904.85917925,0.00014413,2]
[408288453,1773355838411,-166.66,0.00014414,2]
[408288455,1773355838421,-234.92571798,0.00014473,2]
[408288456,1773355838431,-166.22736207,0.00014473,2]
[408288457,1773355838441,-9141.66868727,0.00014473,2]
[408288458,1773355838451,-200.37868977,0.00014498,2]
[408288459,1773355838461,-151.0,0.00014504,2]
[408288460,1773355838470,-151.0,0.00014504,2]
[408288461,1773355838479,-151.0,0.00014504,2]
[408288462,1773355838488,-151.0,0.00014504,2]
[408288463,1773355838498,-151.0,0.00014504,2]
[408288464,1773355838508,-151.0,0.00014504,2]
[408288465,1773355838520,-200.0,0.00014504,2]
[408288466,1773355838529,-151.0,0.00014504,2]
[408288467,1773355838540,-151.0,0.00014504,2]
[408288468,1773355838550,-151.0,0.00014504,2]
[408288469,1773355838560,-151.0,0.00014504,2]
[408288470,1773355838573,-151.0,0.00014504,2]
[408288471,1773355838583,-151.0,0.00014504,2]
[408288472,1773355838592,-151.0,0.00014504,2]
[408288473,1773355838602,-151.0,0.00014504,2]
[408288474,1773355838612,-151.0,0.00014504,2]
[408288475,1773355838622,-151.0,0.00014504,2]
[408288476,1773355838631,-151.0,0.00014504,2]
[408288477,1773355838641,-151.0,0.00014504,2]
[408288478,1773355838651,-151.0,0.00014504,2]
[408288479,1773355838665,-151.0,0.00014504,2]
[408288480,1773355838676,-151.0,0.00014504,2]
[408288481,1773355838686,-163.42785597,0.00014504,2]
[408288482,1773355838696,-972.83,0.00014504,2]
[408288483,1773355838706,-436.51748846,0.00014508,2]
[408288484,1773355838716,-8294.65206932,0.00014508,2]
[408288485,1773355838725,-500.0,0.00014512,2]
[408288486,1773355838734,-500.0,0.00014512,2]
[408288487,1773355838743,-500.0,0.00014512,2]
[408288488,1773355838752,-500.0,0.00014512,2]
[408288489,1773355838763,-500.0,0.00014512,2]
[408288490,1773355838773,-500.0,0.00014512,2]
[408288491,1773355838782,-500.0,0.00014512,2]
[408288492,1773355838791,-500.0,0.00014512,2]
[408288493,1773355838801,-500.0,0.00014512,2]
[408288494,1773355838811,-500.0,0.00014512,2]
[408288495,1773355838821,-500.0,0.00014512,2]
[408288496,1773355838830,-500.0,0.00014512,2]
[408288497,1773355838839,-500.0,0.00014512,2]
[408288498,1773355838850,-500.0,0.00014512,2]
[408288499,1773355838859,-500.0,0.00014512,2]
[408288500,1773355838868,-206.13060722,0.00014512,2]
[408288501,1773355838877,-500.0,0.00014512,2]
[408288502,1773355838887,-500.0,0.00014512,2]
[408288503,1773355838897,-160.08,0.00014512,2]
[408288504,1773355838906,-500.0,0.00014512,2]
[408288505,1773355838915,-500.0,0.00014512,2]
[408288506,1773355838924,-500.0,0.00014512,2]
[408288507,1773355838934,-500.0,0.00014512,2]
[408288508,1773355838943,-500.0,0.00014512,2]
[408288509,1773355838953,-500.0,0.00014512,2]
[408288510,1773355838962,-500.0,0.00014512,2]
[408288511,1773355838971,-500.0,0.00014512,2]
[408288512,1773355838980,-500.0,0.00014512,2]
[408288513,1773355838990,-365.44767161,0.00014512,2]
[408288514,1773355838999,-500.0,0.00014512,2]
[408288515,1773355839008,-500.0,0.00014512,2]
[408288516,1773355839017,-500.0,0.00014512,2]
[408288517,1773355839026,-500.0,0.00014512,2]
[408288518,1773355839036,-500.0,0.00014512,2]
[408288519,1773355839046,-500.0,0.00014512,2]
[408288520,1773355839059,-500.0,0.00014512,2]
[408288521,1773355839069,-500.0,0.00014512,2]
[408288522,1773355839078,-500.0,0.00014512,2]
[408288523,1773355839088,-500.0,0.00014512,2]
[408288524,1773355839097,-500.0,0.00014512,2]
[408288525,1773355839106,-500.0,0.00014512,2]
[408288526,1773355839116,-500.0,0.00014512,2]
[408288527,1773355839125,-500.0,0.00014512,2]
[408288528,1773355839135,-500.0,0.00014512,2]
[408288529,1773355839144,-500.0,0.00014512,2]
[408288530,1773355839153,-500.0,0.00014512,2]
[408288531,1773355839162,-500.0,0.00014512,2]
[408288532,1773355839171,-500.0,0.00014512,2]
[408288533,1773355839181,-500.0,0.00014512,2]
[408288534,1773355839190,-500.0,0.00014512,2]
[408288535,1773355839200,-500.0,0.00014512,2]
[408288536,1773355839209,-500.0,0.00014512,2]
[408288537,1773355839218,-500.0,0.00014512,2]
[408288538,1773355839227,-236.65329114,0.00014512,2]
[408288539,1773355839237,-595.88,0.00014512,2]
[408288540,1773355839246,-595.88,0.00014512,2]
[408288541,1773355839256,-595.88,0.00014512,2]
[408288542,1773355839265,-595.88,0.00014512,2]
[408288543,1773355839275,-595.88,0.00014512,2]
[408288544,1773355839285,-595.88,0.00014512,2]
[408288545,1773355839299,-595.88,0.00014512,2]
[408288546,1773355839308,-595.88,0.00014512,2]
[408288547,1773355839317,-595.88,0.00014512,2]
[408288548,1773355839326,-595.88,0.00014512,2]
[408288549,1773355839337,-595.88,0.00014512,2]
[408288550,1773355839347,-500.0,0.00014512,2]
[408288551,1773355839356,-500.0,0.00014512,2]
[408288552,1773355839367,-500.0,0.00014512,2]
[408288553,1773355839377,-500.0,0.00014512,2]
[408288554,1773355839386,-500.0,0.00014512,2]
[408288555,1773355839395,-500.0,0.00014512,2]
[408288556,1773355839404,-500.0,0.00014512,2]
[408288557,1773355839414,-500.0,0.00014512,2]
[408288558,1773355839423,-500.0,0.00014512,2]
[408288559,1773355839436,-500.0,0.00014512,2]
[408288560,1773355839446,-500.0,0.00014512,2]
[408288561,1773355839455,-500.0,0.00014512,2]
[408288562,1773355839464,-500.0,0.00014512,2]
[408288563,1773355839473,-500.0,0.00014512,2]
[408288564,1773355839482,-500.0,0.00014512,2]
[408288565,1773355839492,-500.0,0.00014512,2]
[408288566,1773355839501,-500.0,0.00014512,2]
[408288567,1773355839512,-500.0,0.00014512,2]
[408288568,1773355839521,-500.0,0.00014512,2]
[408288569,1773355839531,-500.0,0.00014512,2]
[408288570,1773355839540,-315.44,0.00014512,2]
[408288571,1773355839551,-442721.86611277,0.00014513,2]
[408288572,1773355839565,-2950.03767585,0.00014513,2]
[408288579,1773355840162,-168.31078242,0.00014473,2]
[408288580,1773355840172,-8442.1826414,0.00014513,2]
[408288582,1773355841150,-41946.29342951,0.00014513,2]
[408288583,1773355841169,-1067.42379196,0.00014513,2]
[408288584,1773355841184,-2002872.19634851,0.00014513,2]
[408288585,1773355841192,-619.71855644,0.00014573,2]
[408288586,1773355841201,-500.0,0.00014573,2]
[408288587,1773355841210,-500.0,0.00014573,2]
[408288588,1773355841220,-500.0,0.00014573,2]
[408288589,1773355841229,-165.01569282,0.00014573,2]
[408288590,1773355841238,-499.46578139,0.00014573,2]
[408288591,1773355841246,-500.0,0.00014573,2]
[408288592,1773355841255,-500.0,0.00014573,2]
[408288593,1773355841264,-500.0,0.00014573,2]
[408288594,1773355841273,-407.71239442,0.00014573,2]
[408288595,1773355841282,-500.0,0.00014573,2]
[408288596,1773355841293,-500.0,0.00014573,2]
[408288597,1773355841303,-500.0,0.00014573,2]
[408288598,1773355841313,-164.00773729,0.00014573,2]
[408288599,1773355841322,-500.0,0.00014573,2]
[408288600,1773355841331,-500.0,0.00014573,2]
[408288601,1773355841341,-500.0,0.00014573,2]
[408288602,1773355841350,-445.92650306,0.00014573,2]
[408288603,1773355841359,-500.0,0.00014573,2]
[408288604,1773355841371,-500.0,0.00014573,2]
[408288605,1773355841380,-595.88,0.00014592,2]
[408288606,1773355841389,-500.0,0.00014592,2]
[408288607,1773355841398,-14698.74749691,0.00014592,2]
[408288608,1773355841409,-4400.0,0.000146,5]
[408288609,1773355841418,-14686.14,0.00014608,2]
[408288610,1773355841427,-500.0,0.00014612,2]
[408288611,1773355841436,-500.0,0.00014612,2]
[408288612,1773355841445,-500.0,0.00014612,2]
[408288613,1773355841454,-500.0,0.00014612,2]
[408288614,1773355841463,-500.0,0.00014612,2]
[408288615,1773355841473,-500.0,0.00014612,2]
[408288616,1773355841482,-500.0,0.00014612,2]
[408288617,1773355841491,-500.0,0.00014612,2]
[408288618,1773355841500,-500.0,0.00014612,2]
[408288619,1773355841509,-500.0,0.00014612,2]
[408288620,1773355841524,-707.0,0.00014653,2]
[408288621,1773355841540,-342.0,0.00014653,2]
[408288622,1773355841549,-1366.0,0.00014682,2]
[408288623,1773355841559,-322.0,0.00014682,2]
[408288624,1773355841570,-8900.0,0.000147,5]
[408288625,1773355841580,-250.0,0.00014705,2]
[408288626,1773355841590,-191.0,0.00014712,2]
[408288627,1773355841600,-4000.0,0.0001472,2]
[408288628,1773355841611,-1319.0,0.00014731,2]
[408288629,1773355841621,-426.0,0.00014741,2]
[408288630,1773355841631,-1290.0,0.00014761,2]
[408288631,1773355841640,-972.83,0.00014778,2]
[408288632,1773355841650,-1761.0,0.0001479,2]
[408288633,1773355841660,-13300.0,0.000148,5]
[408288634,1773355841669,-914.49520618,0.00014813,2]
[408288635,1773355841678,-444.55003537,0.00014813,2]
[408288636,1773355841687,-1039.08804989,0.00014813,2]
[408288637,1773355841697,-1010.72534097,0.00014813,2]
[408288638,1773355841706,-1499.0,0.0001482,2]
[408288639,1773355841715,-287.27422917,0.00014847,2]
[408288640,1773355841724,-600.0,0.00014847,2]
[408288641,1773355841733,-540.0,0.00014849,2]
[408288642,1773355841742,-1128.43,0.00014856,2]
[408288643,1773355841752,-627.0,0.00014878,2]
[408288644,1773355841761,-17800.0,0.000149,5]
[408288645,1773355841772,-250.0,0.00015,2]
[408288646,1773355841781,-500.0,0.00015,30]
[408288647,1773355841790,-500.0,0.00015,30]
[408288648,1773355841800,-500.0,0.00015,30]
[408288649,1773355841809,-500.0,0.00015,30]
[408288650,1773355841818,-500.0,0.00015,30]
[408288651,1773355841828,-941.81066277,0.00015,30]
[408288652,1773355841836,-500.0,0.00015,30]
[408288653,1773355841845,-500.0,0.00015,30]
[408288654,1773355841854,-500.0,0.00015,30]
[408288655,1773355841864,-500.0,0.00015,30]
[408288656,1773355841876,-500.0,0.00015,30]
[408288657,1773355841886,-500.0,0.00015,30]
[408288658,1773355841897,-500.0,0.00015,30]
[408288659,1773355841908,-500.0,0.00015,30]
[408288660,1773355841926,-500.0,0.00015,30]
[408288661,1773355841936,-500.0,0.00015,30]
[408288662,1773355841945,-500.0,0.00015,30]
[408288663,1773355841954,-500.0,0.00015,30]
[408288664,1773355841963,-500.0,0.00015,30]
[408288665,1773355841972,-500.0,0.00015,30]
[408288666,1773355841982,-500.0,0.00015,30]
[408288667,1773355841991,-500.0,0.00015,30]
[408288668,1773355842001,-500.0,0.00015,30]
[408288669,1773355842010,-500.0,0.00015,30]
[408288670,1773355842018,-500.0,0.00015,30]
[408288671,1773355842027,-500.0,0.00015,30]
[408288672,1773355842036,-500.0,0.00015,30]
[408288673,1773355842045,-500.0,0.00015,30]
[408288674,1773355842054,-500.0,0.00015,30]
[408288675,1773355842063,-500.0,0.00015,30]
[408288676,1773355842072,-500.0,0.00015,30]
[408288677,1773355842081,-500.0,0.00015,30]
[408288678,1773355842090,-500.0,0.00015,30]
[408288679,1773355842099,-500.0,0.00015,30]
[408288680,1773355842108,-500.0,0.00015,30]
[408288681,1773355842118,-500.0,0.00015,30]
[408288682,1773355842127,-500.0,0.00015,30]
[408288683,1773355842136,-500.0,0.00015,30]
[408288684,1773355842145,-500.0,0.00015,30]
[408288685,1773355842154,-500.0,0.00015,30]
[408288686,1773355842163,-500.0,0.00015,30]
[408288687,1773355842172,-13904.85917924,0.00015023,2]
[408288688,1773355842181,-200.0,0.00015052,2]
[408288689,1773355842190,-972.83,0.00015052,2]
[408288690,1773355842200,-4000.0,0.00015062,2]
[408288691,1773355842209,-484.21,0.00015068,2]
[408288692,1773355842219,-1417.27,0.00015068,2]
[408288693,1773355842227,-371.73960843,0.00015121,2]
[408288694,1773355842237,-1000.0,0.00015121,2]
[408288695,1773355842246,-1000.0,0.00015121,2]
[408288696,1773355842256,-1000.0,0.00015121,2]
[408288697,1773355842266,-1000.0,0.00015121,2]
[408288698,1773355842276,-1000.0,0.00015121,2]
[408288699,1773355842286,-312.31798352,0.00015121,2]
[408288700,1773355842302,-1000.0,0.00015121,2]
[408288701,1773355842311,-1000.0,0.00015121,2]
[408288702,1773355842321,-1000.0,0.00015121,2]
[408288703,1773355842330,-500.0,0.00015121,2]
[408288704,1773355842341,-1000.0,0.00015121,2]
[408288705,1773355842351,-168.3299599,0.00015121,2]
[408288706,1773355842360,-305.37,0.00015168,2]